[Event "III Menorca Open-A 2024"]
[Site "Ciutadella Menorca"]
[Date "2024.04.03"]
[Round "2.11"]
[White "De Winter, Arthur"]
[Black "Dardha, Daniel"]
[Result "0-1"]
[ECO "C77"]
[WhiteElo "2413"]
[BlackElo "2628"]
[Annotator "TA"]
[PlyCount "96"]
[EventDate "2024.04.02"]
[EventType "swiss"]
[EventCountry "ESP"]
[SourceTitle "playchess.com"]
[Source "ChessBase"]
[SourceQuality "1"]
[TimeControl "5400+30"]

{[%evp 16,96,15,12,14,10,10,18,22,23,8,-2,27,16,20,14,11,0,38,0,0,0,0,0,0,0,0,0,0,-66,-56,-102,-113,-107,-125,-136,-135,-243,-255,-250,-269,-317,-254,-369,-370,-329,-238,-230,-234,-239,-236,-230,-245,-245,-237,-382,-377,-368,-346,-398,-345,-388,-388,-347,-284,-300,-233,-475,-435,-416,-358,-485,-483,-444,-445,-485,-485,-485,-478,-481,-457,-29992,-29993]} 1. e4 {[%emt 0:00:05]} e5 {[%emt 0:01:47]} 2. Nf3 {[%emt 0:00:08]} Nc6 {[%emt 0:00:06]} 3. Bb5 {[%emt 0:00:04]} Nf6 {[%emt 0:00:43]} 4. d3 {[%emt 0:00:19]} d6 {[%emt 0:01:31]} 5. c3 {[%emt 0:01:08]} a6 {[%emt 0:00:58]} 6. Ba4 {[%emt 0:00:21]} g6 {[%emt 0:01:11]} 7. O-O {[%emt 0:01:32]} Bg7 {[%emt 0:00:07]} 8. Nbd2 {[%emt 0:04:49]} O-O {[%emt 0:00:15]} 9. Re1 {[%emt 0:00:14]} Re8 {[%emt 0:01:47]} 10. Nf1 {[%emt 0:02:56]} h6 {[%emt 0:00:36]} 11. h3 {[%emt 0:05:00]} d5 {[%emt 0:03:56] The position is equal.} 12. Bd2 {[%emt 0:08:29]} b5 {[%emt 0:06:07]} 13. Bc2 {[%emt 0:01:03]} Rb8 {[%emt 0:09:17]} 14. a4 {[%emt 0:11:24]} b4 {[%emt 0:02:42]} 15. a5 {[%emt 0:00:54]} bxc3 {[%emt 0:04:47]} 16. bxc3 {[%emt 0:00:33]} Bb7 {[%emt 0:03:21]} 17. Ne3 {[%emt 0:07:45]} dxe4 {[%emt 0:11:53]} 18. dxe4 {[%emt 0:00:06]} Na7 {[%emt 0:00:11]} 19. Nc4 {[%emt 0:04:09]} Nd7 {[%emt 0:05:20]} 20. Qc1 {[%emt 0:06:57]} Kh7 {[%emt 0:02:55]} 21. h4 {[%emt 0:00:52]} Nb5 {[%emt 0:01:03]} 22. Ne3 {[%emt 0:13:41]} ({White should try} 22. Qd1 $11) 22... Nc5 $15 {[%emt 0:04:24]} 23. Ng4 {[%emt 0:04:43] White is on the road to losing.} (23. h5 $15) 23... h5 $17 {[%emt 0:02:19]} 24. Ne3 {[%emt 0:06:10]} f6 {[%emt 0:03:10] Black has more active pieces.} 25. c4 {[%emt 0:02:48]} Nd4 {[%emt 0:02:04]} 26. Nxd4 {[%emt 0:00:10]} (26. Nd5 $17 {is a better defense.}) 26... exd4 $19 {[%emt 0:00:44]} 27. Nd5 {[%emt 0:00:45]} d3 {[%emt 0:02:07]} 28. Be3 {[%emt 0:01:41]} Bxd5 {[%emt 0:03:07]} (28... Nxe4 29. Bxd3 Bxd5 30. cxd5 $11) 29. exd5 {[%emt 0:03:30]} (29. cxd5 $142 dxc2 (29... Nxe4 30. Bxd3 f5 31. Qc6 $11) 30. Bxc5) 29... dxc2 {[%emt 0:03:52]} 30. Bxc5 {[%emt 0:00:05]} f5 {[%emt 0:03:03]} 31. Qxc2 {[%emt 0:02:01]} Bxa1 {[%emt 0:02:59]} 32. Rxa1 {[%emt 0:00:01]} Qxh4 {[%emt 0:00:09]} 33. d6 {[%emt 0:00:31]} cxd6 {[%emt 0:02:09]} 34. Bxd6 {[%emt 0:00:03]} Qd4 {[%emt 0:00:19][%csl LRa1,LRd6]} 35. Rd1 {[%emt 0:00:13]} (35. Qd1 {was forced.} Qxd1+ (35... Qxc4 36. Rc1 $11) 36. Rxd1) 35... Rb2 {[%emt 0:00:36] Hoping for ...Re1+.} 36. Rxd4 {[%emt 0:00:08]} Rxc2 {[%emt 0:00:14][%mdl 4096] Endgame. KRR-KRB} 37. Bf4 {[%emt 0:01:03]} Re1+ {[%emt 0:06:26]} 38. Kh2 {[%emt 0:00:04]} Re4 {[%emt 0:00:04]} ({Less strong is} 38... Rxf2 39. Rd7+ (39. Bg3 Ref1 $17) 39... Kg8 40. Bg3 $15) 39. Rd7+ {[%emt 0:00:14]} Kh8 {[%emt 0:01:50]} 40. Be3 {[%emt 0:02:19]} Rexc4 {[%emt 0:01:02] White must now prevent ...Rh4+.} 41. Bb6 $2 {[%emt 0:02:44]} (41. g3) 41... Rh4+ {[%emt 0:02:23]} 42. Kg3 {[%emt 0:00:04]} Rg4+ {[%emt 0:00:04]} 43. Kh3 {[%emt 0:00:56]} Rc1 {[%emt 0:01:09][%cal Rc1h1]} 44. g3 {[%emt 0:01:24] [#]} h4 $1 {[%emt 0:01:02]} 45. Ra7 {[%emt 0:00:32]} (45. Rd4 Rxd4) 45... Rc3 {[%emt 0:02:47]} 46. Bc7 {[%emt 0:00:35] Threatens to win with Be5+.} hxg3 {[%emt 0:00:41]} 47. Be5+ {[%emt 0:00:05]} Kg8 {[%emt 0:00:05]} 48. Bxc3 {[%emt 0:00:12] [#]} (48. Bxg3 $19 Rc6 49. Rd7) 48... gxf2 {[%emt 0:00:36] Weighted Error Value: White=0.53/Black=0.16 (very precise) .  Mistake:       	White=7     	---        Inaccurate:     	White=2     	Black=2      OK:         	White=9     	Black=17     Best:        	White=2     	Black=6} 0-1

[Event "III Menorca Open-A 2024"]
[Site "Ciutadella Menorca"]
[Date "2024.04.03"]
[Round "2.12"]
[White "Chigaev, Maksim"]
[Black "Sanchez Alvarez, Roberto Carlos"]
[Result "1-0"]
[ECO "A13"]
[WhiteElo "2617"]
[BlackElo "2407"]
[Annotator "RC"]
[PlyCount "57"]
[EventDate "2024.04.02"]
[EventType "swiss"]
[EventCountry "ESP"]
[SourceTitle "playchess.com"]
[Source "ChessBase"]
[SourceQuality "1"]
[TimeControl "5400+30"]

1. c4 {[%emt 0:00:03]} e6 {[%emt 0:18:54]} 2. g3 {[%emt 0:00:06]} d5 {[%emt 0:00:26]} 3. Bg2 {[%emt 0:00:06]} dxc4 {[%emt 0:00:24]} 4. Qa4+ {[%emt 0:00:25]} Nd7 {[%emt 0:00:11]} 5. Qxc4 {[%emt 0:00:16]} a6 {[%emt 0:00:09]} 6. Qc2 {[%emt 0:02:33]} Ngf6 {[%emt 0:00:20]} 7. Nf3 {[%emt 0:04:52]} c5 {[%emt 0:00:22]} 8. O-O {[%emt 0:01:21]} Qc7 {[%emt 0:01:16]} 9. Nc3 {[%emt 0:02:53]} b6 {[%emt 0:00:09]} 10. d4 {[%emt 0:00:05]} Bb7 {[%emt 0:00:04]} 11. Bf4 {[%emt 0:00:04]} Bd6 {[%emt 0:00:06]} 12. Bxd6 {[%emt 0:00:05]} Qxd6 {[%emt 0:00:07]} 13. Rfd1 {[%emt 0:00:17]} O-O {[%emt 0:01:10]} 14. e4 {[%emt 0:00:08]} cxd4 {[%emt 0:04:50]} 15. Rxd4 {[%emt 0:00:08]} Qc7 {[%emt 0:00:45]} 16. Rad1 {[%emt 0:06:19]} Rac8 {[%emt 0:08:41]} 17. Qe2 {[%emt 0:12:19]} Nc5 {[%emt 0:06:45]} 18. Ne1 {[%emt 0:20:45]} Rfd8 {[%emt 0:13:33]} 19. e5 {[%emt 0:02:46]} Rxd4 {[%emt 0:01:52]} 20. Rxd4 {[%emt 0:00:02]} Bxg2 {[%emt 0:00:13]} 21. exf6 {[%emt 0:04:50]} Bb7 {[%emt 0:01:57]} 22. Qg4 {[%emt 0:01:14]} g6 {[%emt 0:00:14]} 23. Qg5 {[%emt 0:00:03]} Qc6 {[%emt 0:13:47]} 24. f3 {[%emt 0:00:04]} e5 {[%emt 0:00:10]} 25. Nd5 {[%emt 0:00:58]} Ne6 {[%emt 0:00:02]} 26. Ne7+ {[%emt 0:01:09]} Kh8 {[%emt 0:00:04]} 27. Nxc6 {[%emt 0:01:55]} Nxg5 {[%emt 0:00:27]} 28. Nxe5 {[%emt 0:00:03]} h5 {[%emt 0:05:05]} 29. Rd7 {[%emt 0:02:20]} 1-0

[Event "III Menorca Open-A 2024"]
[Site "Ciutadella Menorca"]
[Date "2024.04.03"]
[Round "2.13"]
[White "Jin, Yueheng"]
[Black "Karthik Venkataraman"]
[Result "0-1"]
[ECO "D11"]
[WhiteElo "2407"]
[BlackElo "2609"]
[Annotator "TA"]
[PlyCount "78"]
[EventDate "2024.04.02"]
[EventType "swiss"]
[EventCountry "ESP"]
[SourceTitle "playchess.com"]
[Source "ChessBase"]
[SourceQuality "1"]
[TimeControl "5400+30"]

{[%evp 9,78,5,24,19,1,5,21,13,29,-55,-40,-47,-52,-56,-38,-79,-77,-91,-74,-91,-79,-72,-65,-94,-66,-91,-61,-133,-112,-141,-16,-17,-5,-2,0,0,0,-23,-19,-19,-19,-70,-50,-55,16,17,10,9,52,0,0,0,0,-143,-150,-144,-103,-522,-542,-541,-531,-539,-532,-821,-797,-836,-834,-821,-822,-808,-788]} 1. d4 {[%emt 0:00:08]} d5 {[%emt 0:00:17]} 2. c4 {[%emt 0:00:05]} c6 {[%emt 0:00:05]} 3. Nf3 {[%emt 0:01:24]} Nf6 {[%emt 0:00:06]} 4. g3 {[%emt 0:00:03]} dxc4 {[%emt 0:00:11]} 5. Bg2 {[%emt 0:00:08]} g6 {[%emt 0:00:05]} 6. Ne5 {[%emt 0:03:52][%mdl 1024] White has compensation.} Be6 {[%emt 0:00:25]} 7. Na3 {[%emt 0:10:34]} Bd5 {[%emt 0:05:58]} 8. f3 {[%emt 0:00:37][%cal Oe2e4] The position is equal.} b5 {[%emt 0:00:37]} 9. Bh3 {[%emt 0:03:05]} (9. e4 $11) 9... Bg7 {[%emt 0:14:11]} 10. e4 {[%emt 0:06:47]} Be6 $36 {[%emt 0:00:20][%mdl 2048] Black is pushing.} (10... O-O 11. exd5 Nxd5 12. f4 $16) 11. Bxe6 {[%emt 0:00:04]} fxe6 {[%emt 0:00:05]} 12. Be3 {[%emt 0:10:47]} Qa5+ {[%emt 0:07:49]} 13. Qd2 {[%emt 0:01:10]} Qxd2+ {[%emt 0:02:59]} 14. Kxd2 {[%emt 0:00:18]} Nfd7 {[%emt 0:03:16]} 15. Nxd7 {[%emt 0:00:37]} Nxd7 {[%emt 0:00:06]} 16. e5 {[%emt 0:00:09]} O-O {[%emt 0:02:46]} 17. Raf1 {[%emt 0:21:28]} Rad8 {[%emt 0:05:52]} 18. Kc1 {[%emt 0:10:20]} (18. Ke2 $15) 18... Nb6 {[%emt 0:04:07]} 19. f4 {[%emt 0:00:21] [#]} g5 {[%emt 0:05:07]} 20. fxg5 $11 {[%emt 0:00:18]} Nd5 {[%emt 0:15:49]} 21. Bd2 {[%emt 0:00:21]} Rc8 {[%emt 0:00:04]} 22. Nc2 {[%emt 0:09:26]} Rfd8 {[%emt 0:06:02]} 23. Re1 {[%emt 0:02:30]} Rd7 {[%emt 0:05:27]} 24. Re4 {[%emt 0:01:58]} c5 {[%emt 0:00:29]} 25. Bf4 {[%emt 0:04:16]} (25. dxc5 $11 c3 (25... Rxc5 26. Rd1 $15) 26. Bxc3 (26. bxc3 Rxc5 27. Rd1 a5 $15) 26... Nxc3 27. bxc3 Rxc5 28. Rd4) 25... c3 $15 {[%emt 0:07:47] Black is more active.} 26. b3 {[%emt 0:00:26]} a5 {[%emt 0:00:04]} (26... c4 $1 $15 27. Kb1 a5) 27. dxc5 $1 $11 {[%emt 0:01:18]} Rxc5 {[%emt 0:00:01]} 28. Rd1 {[%emt 0:04:37]} b4 {[%emt 0:02:08]} 29. Red4 {[%emt 0:05:54]} ({White should try} 29. Rc4 $14 Rdc7 30. Rxc5 Rxc5 31. h4) 29... Ra7 {[%emt 0:02:23]} 30. h4 {[%emt 0:00:34]} a4 {[%emt 0:01:14]} 31. Nxb4 {[%emt 0:00:58]} (31. bxa4 $11 {keeps the balance.} Rxa4 32. a3) 31... axb3 $17 {[%emt 0:04:55]} 32. axb3 {[%emt 0:00:01] [#]} Bxe5 $1 {[%emt 0:01:08]} (32... Rb5 33. Nxd5 exd5 34. Rxd5 Rxb3 35. Kc2 $18) 33. Bxe5 {[%emt 0:00:36][%mdl 8192] Loses the game.} (33. Rxd5 $17 {nothing else works.} Bxf4+ 34. gxf4 exd5 35. Rxd5) 33... Ra1+ $19 {[%emt 0:00:06] Black is clearly winning.} 34. Kc2 {[%emt 0:00:02]} Ne3+ {[%emt 0:00:04]} 35. Kd3 {[%emt 0:01:33]} Rxd1+ {[%emt 0:00:03]} 36. Ke2 {[%emt 0:00:52]} Rd2+ {[%emt 0:01:06]} 37. Rxd2 {[%emt 0:00:25]} cxd2 {[%emt 0:00:02]} 38. Kxd2 {[%emt 0:00:30]} Rxe5 {[%emt 0:00:05]} 39. Nd3 {[%emt 0:00:12]} Nf1+ {[%emt 0:00:07] Weighted Error Value: White=0.46/Black=0.16 (very precise) .  Loses game:     	White=1     	---        Mistake:       	White=5     	Black=2      Inaccurate:     	White=3     	Black=2      OK:         	White=8     	Black=13     Best:        	White=3     	Black=4      Strong:       	White=1     	Black=1} 0-1

[Event "III Menorca Open-A 2024"]
[Site "Ciutadella Menorca"]
[Date "2024.04.03"]
[Round "2.14"]
[White "Yuffa, Daniil"]
[Black "Tutisani, Noe"]
[Result "1/2-1/2"]
[ECO "E94"]
[WhiteElo "2606"]
[BlackElo "2405"]
[Annotator "TA"]
[PlyCount "108"]
[EventDate "2024.04.02"]
[EventType "swiss"]
[EventCountry "ESP"]
[SourceTitle "playchess.com"]
[Source "ChessBase"]
[SourceQuality "1"]
[TimeControl "5400+30"]

{[%evp 15,108,38,38,31,32,18,29,26,52,33,84,54,54,67,50,64,60,66,56,49,63,47,82,70,93,36,29,36,38,30,37,33,40,27,35,-11,-11,-18,0,0,0,0,0,0,0,0,0,0,0,3,14,14,14,0,0,0,0,0,0,0,0,0,0,-26,-21,-31,-14,-29,-16,-21,-14,-14,-20,-16,-20,-72,-71,-71,-64,-145,-60,-64,-64,-72,-72,-72,-71,-72,-72,-72,-72,-72,-72,-73,-72]} 1. Nf3 {[%emt 0:01:10]} Nf6 {[%emt 0:00:13]} 2. c4 {[%emt 0:00:12]} g6 {[%emt 0:00:55]} 3. Nc3 {[%emt 0:00:40]} Bg7 {[%emt 0:00:18]} 4. e4 {[%emt 0:00:12]} d6 {[%emt 0:00:06]} 5. d4 {[%emt 0:00:09]} O-O {[%emt 0:00:06]} 6. Be2 {[%emt 0:00:29]} e5 {[%emt 0:00:11]} 7. O-O {[%emt 0:00:46]} Bg4 {[%emt 0:01:29]} 8. d5 {[%emt 0:00:35]} a5 {[%emt 0:00:06]} 9. Be3 {[%emt 0:00:22]} Na6 {[%emt 0:12:37]} 10. a3 {[%emt 0:05:40]} Bd7 {[%emt 0:09:16]} 11. Nd2 {[%emt 0:00:31] White has an edge.} h5 {[%emt 0:01:14]} 12. h3 {[%emt 0:00:35] Inhibits Ng4.} Kh7 {[%emt 0:07:04]} ({Black should play} 12... Nh7 $14) 13. Rb1 {[%emt 0:10:53]} Bh6 {[%emt 0:00:34]} 14. Bxh6 {[%emt 0:00:12]} Kxh6 {[%emt 0:00:03]} 15. b4 {[%emt 0:00:51]} axb4 {[%emt 0:00:16]} 16. axb4 {[%emt 0:00:05][%cal Oc4c5]} Qe7 {[%emt 0:00:06]} 17. Nf3 {[%emt 0:06:01]} Kg7 {[%emt 0:06:17]} 18. Qd2 {[%emt 0:04:25]} Rfe8 {[%emt 0:09:43]} 19. Rfd1 {[%emt 0:06:29]} Nh7 {[%emt 0:06:08] [#]} 20. c5 {[%emt 0:07:09]} dxc5 $14 {[%emt 0:04:12]} 21. d6 {[%emt 0:00:41]} cxd6 {[%emt 0:02:36]} 22. Bxa6 {[%emt 0:23:15]} Rxa6 {[%emt 0:00:34]} 23. bxc5 {[%emt 0:00:11]} Bc6 {[%emt 0:00:27]} 24. cxd6 {[%emt 0:00:10]} Qd7 {[%emt 0:00:06]} 25. Nd5 {[%emt 0:09:03]} (25. Qb2 $14) 25... Qxd6 $11 {[%emt 0:04:10]} 26. Qb2 {[%emt 0:02:48]} Qb8 {[%emt 0:10:39]} 27. Nb4 {[%emt 0:08:31] Excellent horsemanship.} Rb6 {[%emt 0:00:04]} 28. Nxc6 {[%emt 0:00:43]} Rxb2 {[%emt 0:00:06]} 29. Nxb8 {[%emt 0:00:05]} Rxb1 {[%emt 0:00:05]} 30. Rxb1 {[%emt 0:00:03]} Rxb8 {[%emt 0:00:04]} 31. Nxe5 {[%emt 0:00:23][%mdl 4096] Endgame. KRN-KRN} Nf6 {[%emt 0:08:27] Repels Nd7} 32. f3 {[%emt 0:00:28]} b5 {[%emt 0:00:35]} 33. Nc6 {[%emt 0:03:15]} Rb6 {[%emt 0:00:43]} 34. Nd4 {[%emt 0:00:30]} b4 {[%emt 0:00:11]} 35. Rb3 {[%emt 0:00:11]} h4 {[%emt 0:00:12]} 36. Nc2 {[%emt 0:02:46]} Rd6 {[%emt 0:02:24]} 37. Nxb4 {[%emt 0:02:50]} Rd1+ {[%emt 0:00:06]} 38. Kf2 {[%emt 0:01:03]} Rd2+ {[%emt 0:00:03]} 39. Ke3 {[%emt 0:01:38]} Rxg2 {[%emt 0:00:23]} 40. Nd3 {[%emt 0:01:18]} Rg3 {[%emt 0:00:34]} 41. Rb7 {[%emt 0:00:33]} Nh7 {[%emt 0:00:05][%cal Oh7g5] Black wants to play ...Ng5!} 42. Ke2 {[%emt 0:01:26]} Ng5 {[%emt 0:01:55]} 43. Ne5 {[%emt 0:00:14]} Rxh3 {[%emt 0:01:39]} 44. f4 {[%emt 0:00:39]} Nxe4 {[%emt 0:00:10] Threatens to win with ...Rg3.} 45. Nxf7 {[%emt 0:01:21]} (45. Rxf7+ $11 {remains equal.} Kg8 46. Rc7) 45... Kf6 $17 {[%emt 0:00:27] [#] ...Rg3 would now be deadly.} 46. Ne5 {[%emt 0:00:30]} Rg3 {[%emt 0:00:12] aiming for ...h3.} 47. Rf7+ {[%emt 0:00:32]} Ke6 {[%emt 0:00:04]} 48. Rh7 {[%emt 0:00:14]} h3 {[%emt 0:00:16] And now ...g5 would win.} 49. Nxg6 {[%emt 0:00:52]} Rxg6 {[%emt 0:01:11] Black is better.} 50. Rxh3 $15 {[%emt 0:00:15] KRN-KR} Rg8 {[%emt 0:01:42]} 51. Rh7 {[%emt 0:00:26]} Nf6 {[%emt 0:00:11]} 52. Ra7 {[%emt 0:00:13]} Rb8 {[%emt 0:00:41]} 53. f5+ {[%emt 0:00:11]} Kxf5 {[%emt 0:00:09]} 54. Rf7 {[%emt 0:00:24]} Ke5 {[%emt 0:15:25] Weighted Error Value: White=0.11 (very precise) /Black=0.05 (flawless) .  Mistake:       	White=3     	Black=1      Inaccurate:     	White=2     	Black=3      OK:         	White=16    	Black=27     Best:        	White=4     	Black=3} 1/2-1/2

[Event "III Menorca Open-A 2024"]
[Site "Ciutadella Menorca"]
[Date "2024.04.03"]
[Round "2.15"]
[White "Vantika Agrawal"]
[Black "Albornoz Cabrera, Carlos Daniel"]
[Result "0-1"]
[ECO "E04"]
[WhiteElo "2398"]
[BlackElo "2603"]
[Annotator "TA"]
[PlyCount "64"]
[EventDate "2024.04.02"]
[EventType "swiss"]
[EventCountry "ESP"]
[SourceTitle "playchess.com"]
[Source "ChessBase"]
[SourceQuality "1"]
[TimeControl "5400+30"]

{[%evp 13,64,17,16,22,10,4,24,0,0,-10,0,0,0,0,0,-5,-9,-4,-11,-13,-4,-12,-8,-10,-16,-87,-93,-85,-64,-71,-71,-71,-61,-66,-75,-120,-115,-145,-122,-596,-589,-611,-611,-611,-611,-687,-678,-670,-661,-1138,-1129,-1069,-1055]} 1. d4 {[%emt 0:00:49]} Nf6 {[%emt 0:00:09]} 2. c4 {[%emt 0:00:20]} e6 {[%emt 0:00:04]} 3. Nf3 {[%emt 0:00:08]} d5 {[%emt 0:00:04]} 4. g3 {[%emt 0:00:11]} dxc4 {[%emt 0:00:04]} 5. Bg2 {[%emt 0:00:38]} a6 {[%emt 0:00:05]} 6. O-O {[%emt 0:01:28]} b5 {[%emt 0:00:06]} 7. Ne5 {[%emt 0:05:33]} Nd5 $1 {[%emt 0:00:07]} 8. b3 {[%emt 0:09:22]} cxb3 {[%emt 0:01:41]} 9. Qxb3 {[%emt 0:07:59]} Bb7 {[%emt 0:07:10]} 10. Bb2 {[%emt 0:08:30] White has an edge.} Be7 {[%emt 0:15:02]} 11. Rc1 {[%emt 0:05:31]} O-O {[%emt 0:02:14]} 12. a4 {[%emt 0:06:53]} Nd7 {[%emt 0:08:29]} 13. axb5 {[%emt 0:25:57]} Nxe5 {[%emt 0:01:03]} 14. bxa6 {[%emt 0:07:38]} Bxa6 {[%emt 1:01:12]} 15. dxe5 {[%emt 0:00:43]} Rb8 {[%emt 0:00:00]} 16. Qc2 {[%emt 0:02:09][%cal Og2d5]} Nb4 {[%emt 0:00:00]} 17. Qxc7 {[%emt 0:05:30]} Bxe2 {[%emt 0:00:00] [#] Hoping for ...Nd3.} 18. Qxd8 {[%emt 0:02:47]} Rfxd8 {[%emt 0:00:00]} 19. Nc3 {[%emt 0:01:21]} (19. Ba3 $11) 19... Nd3 $1 $36 {[%emt 0:00:00][%csl LRb2,LRc1,LRe5][%mdl 2048] Black has strong initiative.} 20. Rc2 {[%emt 0:06:08]} Bh5 {[%emt 0:00:00]} 21. Na4 {[%emt 0:00:37]} Bg6 {[%emt 0:00:00][%cal Od3c5] ...Nc5! is the strong threat. Black has more active pieces.} 22. Rc7 {[%emt 0:00:28]} Bb4 {[%emt 0:00:00]} 23. Bf1 {[%emt 0:00:46]} h5 {[%emt 0:00:00]} 24. Rd1 {[%emt 0:00:29]} Ba5 {[%emt 0:00:00][%csl LRb2,LRc7]} 25. Rc2 {[%emt 0:00:33]} Rb4 {[%emt 0:00:00]} 26. Bxd3 $4 {[%emt 0:00:28][%mdl 8192] [#] Loses the game.} (26. Ra1 $17 {nothing else works.}) 26... Rxa4 $19 {[%emt 0:00:00] Black is clearly winning.} ({Weaker is} 26... Rxd3 27. Rc8+ Kh7 28. Ra1 $17) 27. Bc3 {[%emt 0:00:33]} Rxd3 {[%emt 0:00:00]} 28. Rxd3 {[%emt 0:00:30]} Bxd3 {[%emt 0:00:00]} 29. Rd2 {[%emt 0:00:30]} Bxc3 {[%emt 0:00:00]} 30. Rxd3 {[%emt 0:00:02]} Bxe5 {[%emt 0:00:00]} 31. h4 {[%emt 0:00:53]} Bd4 {[%emt 0:00:00]} 32. Kg2 {[%emt 0:00:34]} e5 {[%emt 0:00:00] Weighted Error Value: White=0.54/Black=0.04 (flawless) .  Loses game:     	White=1     	---        Mistake:       	White=1     	---        Inaccurate:     	White=1     	---        OK:         	White=5     	Black=8      Best:        	---       	Black=1      Strong:       	---       	Black=1} 0-1

[Event "III Menorca Open-A 2024"]
[Site "Ciutadella Menorca"]
[Date "2024.04.03"]
[Round "2.16"]
[White "Pranav Vijay"]
[Black "Shohat, Yotam"]
[Result "1/2-1/2"]
[ECO "B72"]
[WhiteElo "2252"]
[BlackElo "2398"]
[Annotator "TA"]
[PlyCount "95"]
[EventDate "2024.04.02"]
[EventType "swiss"]
[EventCountry "ESP"]
[SourceTitle "playchess.com"]
[Source "ChessBase"]
[SourceQuality "1"]
[TimeControl "5400+30"]

{[%evp 10,95,62,44,30,31,57,47,50,38,49,39,42,41,42,44,45,44,45,35,78,22,33,23,18,5,15,24,15,18,8,18,82,70,80,78,84,90,92,88,90,72,215,200,248,0,0,0,0,-14,0,0,0,0,0,0,0,0,0,0,0,0,0,0,0,0,0,0,0,0,0,0,0,0,0,0,0,0,24,0,0,0,0,0,0,0,0,0]} 1. e4 {[%emt 0:00:07]} c5 {[%emt 0:04:07]} 2. Nf3 {[%emt 0:00:08]} g6 {[%emt 0:00:09]} 3. d4 {[%emt 0:01:11]} cxd4 {[%emt 0:00:08]} 4. Nxd4 {[%emt 0:00:06]} Nf6 {[%emt 0:00:06]} 5. Nc3 {[%emt 0:00:47]} d6 {[%emt 0:00:06]} 6. Be3 {[%emt 0:00:35]} Nc6 {[%emt 0:00:05]} 7. f3 {[%emt 0:01:39] Against Ng4} h5 {[%emt 0:01:37]} 8. Bc4 {[%emt 0:00:22]} Bd7 {[%emt 0:00:07] White is slightly better.} 9. Bb3 {[%emt 0:01:02]} Bg7 {[%emt 0:00:11]} 10. Qd3 {[%emt 0:00:29]} Na5 {[%emt 0:09:20]} 11. O-O {[%emt 0:01:15]} O-O {[%emt 0:02:14]} 12. h3 {[%emt 0:02:15]} a6 {[%emt 0:02:30]} 13. f4 {[%emt 0:01:20]} Nxb3 {[%emt 0:05:09]} 14. axb3 {[%emt 0:00:08]} Rc8 {[%emt 0:02:13]} 15. e5 {[%emt 0:14:40]} ({Better is} 15. f5 $16) 15... dxe5 {[%emt 0:04:20]} 16. fxe5 {[%emt 0:00:09]} Ne8 {[%emt 0:00:06]} 17. Qe4 {[%emt 0:02:24][%cal Oa1d1] Black must now prevent Rad1!} Bc6 $1 {[%emt 0:15:17]} 18. Nxc6 {[%emt 0:12:26]} Rxc6 {[%emt 0:00:03]} 19. Rad1 {[%emt 0:01:35]} Qb8 {[%emt 0:01:34]} 20. Bf4 $36 {[%emt 0:02:20][%mdl 2048] White fights for an advantage.} e6 {[%emt 0:08:12]} (20... Re6 $11) 21. Rd7 {[%emt 0:05:58]} Rc7 {[%emt 0:02:13]} 22. Rd2 {[%emt 0:06:59] White is much more active. The black rooks are passive.} b5 {[%emt 0:06:20]} 23. Qe2 {[%emt 0:02:30]} Rc5 {[%emt 0:06:07][%cal Rg7e5]} 24. Ne4 {[%emt 0:01:27]} Rd5 {[%emt 0:00:03]} 25. Nf6+ {[%emt 0:03:28]} Nxf6 {[%emt 0:14:59]} (25... Bxf6 $16 {was called for.} 26. exf6 Nd6 27. Rxd5 exd5) 26. exf6 $18 {[%emt 0:00:08]} Qb6+ {[%emt 0:00:08]} 27. Qe3 $2 {[%emt 0:02:33]} ({Only move:} 27. Be3 $18 Rxd2 28. fxg7 (28. Qxd2 Bh6 $11) 28... Rxe2 29. gxf8=Q+ (29. Bxb6 $2 {too greedy.} Rc8 $19) (29. gxf8=R+ Kxf8 30. Bxb6 Rxc2 $18) 29... Kxf8 30. Bxb6) 27... Qxe3+ $11 {[%emt 0:01:52]} 28. Bxe3 {[%emt 0:00:08]} Bh8 {[%emt 0:02:04]} 29. Rdf2 {[%emt 0:15:25]} Rc8 {[%emt 0:05:34]} 30. h4 {[%emt 0:10:46]} b4 {[%emt 0:00:08]} 31. Bg5 {[%emt 0:01:45]} Rdc5 {[%emt 0:02:03]} 32. Rd1 {[%emt 0:04:29]} Rxc2 {[%emt 0:00:44]} 33. Rxc2 {[%emt 0:00:10]} Rxc2 {[%emt 0:00:02][%mdl 4096] Endgame. KRB-KRB} 34. Rd8+ {[%emt 0:00:07]} Kh7 {[%emt 0:00:04]} 35. Rf8 {[%emt 0:00:15]} Rc7 {[%emt 0:00:34]} 36. Kf2 {[%emt 0:01:12]} e5 {[%emt 0:00:17]} 37. Ke3 {[%emt 0:02:39] [#] aiming for Ke4.} Rc6 {[%emt 0:00:35]} 38. Ke4 {[%emt 0:00:35]} Bxf6 {[%emt 0:01:58]} 39. Rxf7+ {[%emt 0:00:42]} Bg7 {[%emt 0:00:01]} 40. Kd5 {[%emt 0:00:34]} Rb6 {[%emt 0:00:03]} 41. Bd8 {[%emt 0:01:15]} Rb5+ {[%emt 0:00:51]} 42. Ke4 {[%emt 0:00:24] [#] Bf6 is the strong threat.} Kg8 {[%emt 0:00:23]} 43. Ra7 {[%emt 0:00:18]} Rb8 {[%emt 0:01:00]} 44. Bg5 {[%emt 0:03:11][%mdl 1024] White has compensation.} Rb6 {[%emt 0:00:37] The position is equal.} 45. Ra8+ {[%emt 0:00:23]} Kh7 {[%emt 0:00:26]} 46. Ra7 {[%emt 0:00:17]} Kg8 {[%emt 0:02:38]} 47. Ra8+ {[%emt 0:00:22]} Kh7 {[%emt 0:00:03]} 48. Ra7 {[%emt 0:00:16] Weighted Error Value: White=0.13 (very precise) /Black=0.11 (very precise) .  Missed win:     	White=1     	---        Mistake:       	White=1     	Black=2      Inaccurate:     	---       	Black=2      OK:         	White=22    	Black=15     Best:        	---       	Black=1      Strong:       	---       	Black=1} 1/2-1/2